Cogmind - Beta 9.6 @@@ ROGUE MODE // 2020.04.16 @ 09:12:59 Player: OccultOnion Result: Destroyed by Y-45 Defender with Heavy Assault Rifle Performance ------------- Evolutions (1) 500 Regions Visited (2) 400 Robots Destroyed (28) 140 Value Destroyed (666) 666 Prototype IDs (1) 20 Alien Tech Used (0) 0 Bonus (0) 0 TOTAL SCORE: 1726 Bonus ------- None Cogmind --------- Core Integrity 0/400 Matter 172/300 Energy 99/100 System Corruption 2% Temperature Cool (20) Movement Core (350) Ox6 Location -9/Materials Parts ------- > --- POWER (1) -------- (None) > --- PROPULSION (3) --- (None) > --- UTILITY (3) ------ Medium Storage Unit Medium Storage Unit > --- WEAPON (2) ------- Enhanced Autogun > --- INVENTORY (12) --- Deuterium Engine Aluminum Leg Particle Gun Enhanced Autogun Peak State ------------ > --- POWER ------------ Deuterium Engine > --- PROPULSION ------- Light Treads Light Treads Wheel > --- UTILITY ---------- Small Storage Unit Medium Storage Unit Advanced Sensor Array > --- WEAPON ----------- Enhanced Autogun Enhanced Autogun > --- INVENTORY -------- Deuterium Engine Aluminum Leg Enhanced Autogun Enhanced Autogun Grenade Launcher [Rating: 20] Favorites ----------- Power Ion Engine Engine Ion Engine Propulsion Aluminum Leg Treads Light Treads Leg Aluminum Leg Wheel Wheel Utility Small Storage Unit Device Advanced Sensor Array Storage Small Storage Unit Weapon Enhanced Autogun Energy Gun EM Pulse Gun Ballistic Gun Enhanced Autogun Launcher Grenade Launcher Build | -11 -10 -9 ------- Run | Scr Mat Mat Slots Evolved 2 | . . 2 Power . | . . . Propulsion 1 | . . 1 Utility 1 | . . 1 Weapon . | . . . Parts Attached 20 | 1 7 12 Power 4 | . 2 2 Engine 4 | . 2 2 Core . | . . . Reactor . | . . . Propulsion 4 | . 2 2 Treads 2 | . 1 1 Leg 1 | . . 1 Wheel 1 | . 1 . Hover . | . . . Flight . | . . . Utility 4 | 1 . 3 Device 2 | 1 . 1 Storage 2 | . . 2 Processor . | . . . Hackware . | . . . Protection . | . . . Artifact . | . . . Weapon 8 | . 3 5 Energy Gun 3 | . 2 1 Energy Cannon . | . . . Ballistic Gun 4 | . 1 3 Ballistic Cannon . | . . . Launcher 1 | . . 1 Special Weapon . | . . . Impact Weapon . | . . . Slashing Weapon . | . . . Piercing Weapon . | . . . Special Melee Weapon . | . . . Unidentified Prototypes 1 | . . 1 Parts Lost 16 | . 6 10 Power 4 | . 2 2 Propulsion 5 | . 1 4 Utility 2 | . 1 1 Weapon 5 | . 2 3 Highest Loss Streak 10 | . 4 10 Average Slot Usage (%) 86 | . 83 89 Engine 11 | . 11 10 Treads 9 | . 2 19 Leg 15 | . 24 1 Wheel 3 | . . 8 Device 5 | . 2 9 Storage 16 | . 14 19 Energy Gun 5 | . 8 1 Ballistic Gun 18 | . 17 18 Naked Turns . | . . . Heaviest Build 32 | 11 12 32 Greatest Support 40 | 20 20 40 Greatest Overweight (x) 6 | . 1 6 Average Overweight (x) . | . . 2 Largest Inventory Capacity 12 | 6 6 12 Average Capacity 7 | 6 6 10 Most Carried 7 | 6 6 7 Average Carried 5 | 5 5 6 Final Capacity 12 | 6 6 12 Final Carried 6 | 6 6 4 Class Distribution -------------------- 100% | Mutant Dominant Class ---------------- Mutant | -10/Materials Mutant | -9/Materials Resources | -11 -10 -9 ----------- Run | Scr Mat Mat Matter Collected 530 | 226 152 152 Remotely . | . . . Salvage Created 924 | 114 590 220 Parts 64 | 5 34 25 Haulers Intercepted . | . . . Recyclers Shooed 2 | . 2 . Parts Field Recycled . | . . . Retrieved Matter . | . . . Parts Self-Destructed . | . . . Prevented . | . . . Kills | -11 -10 -9 ------- Run | Scr Mat Mat Combat Hostiles Destroyed 22 | . 13 9 Guns 13 | . 11 2 AOE 9 | . 2 7 Classes Destroyed 7 | 2 2 3 Worker 1 | . . 1 Builder 1 | . . 1 Tunneler 1 | 1 . . Recycler 3 | 1 2 . Swarmer 7 | . 3 4 Grunt 13 | . 10 3 Sentry 2 | . . 2 Best Kill Streak 10 | 1 4 10 Combat Bots Only 8 | . 3 8 Max Kills in Single Turn 4 | 1 3 4 Gunslinging 1 | . 1 . Exploded 3 | . 2 3 Melee . | . . . Uniques/NPCs Destroyed . | . . . Combat | -11 -10 -9 -------- Run | Scr Mat Mat Damage Taken 2145 | . 577 1568 Core 545 | . 130 415 Absorbed by Shields . | . . . Core Remaining (%) 74 | 100 48 . Volleys Fired 82 | 5 46 31 Largest 2 | 2 2 2 Hottest 60 | 40 60 55 Shots Fired 147 | 10 84 53 Gun 139 | 10 84 45 Cannon . | . . . Launcher 8 | . . 8 Special . | . . . Kinetic 116 | 10 61 45 Thermal . | . . . Explosive 8 | . . 8 Electromagnetic 23 | . 23 . Robot Hit Streak 12 | 3 12 12 Robot Miss Streak 5 | 1 5 2 Penetration Max . | . . . Secondary Targets 2 | . 2 . Max Gunslinging Chain 1 | . 1 . Shots Hit Robots 99 | 5 52 42 Core Hits 51 | 3 26 22 Critical Hits 1 | . . 1 Critical Kills . | . . . Critical Parts Destroyed 1 | . . 1 Melee Attacks . | . . . Impact . | . . . Slashing . | . . . Piercing . | . . . Sneak Attacks . | . . . Combat Hostiles . | . . . Follow-up Attacks . | . . . Damage Inflicted 2108 | 85 714 1309 Guns 1355 | 85 622 648 Cannons . | . . . Explosions 750 | . 92 658 Melee . | . . . Ramming 3 | . . 3 Kinetic 1095 | 85 362 648 Thermal 92 | . 92 . Explosive 658 | . . 658 Electromagnetic 260 | . 260 . Impact . | . . . Slashing . | . . . Piercing . | . . . Highest Corruption 2 | . . 2 Average Corruption 2 | . . 2 Corruption Purged . | . . . Effects 2 | . . 2 Message Errors 1 | . . 1 Weapon Failures 1 | . . 1 Overload Shots . | . . . Overflow Damage . | . . . Projectiles . | . . . Explosions . | . . . Melee . | . . . Knockbacks . | . . . Impact . | . . . Kinetic . | . . . Secondary . | . . . Self-Inflicted Damage 85 | . . 85 Shots 3 | . . 3 Rammed 1 | . . 1 Targets Rammed 1 | . . 1 Kicked . | . . . Crushed . | . . . Highest Temperature 154 | . 130 154 Average Temperature 38 | . 33 44 Received Heat Transfer 792 | . 306 486 Siege Activations . | . . . Robots Corrupted . | . . . Combat Hostiles . | . . . Parts Fried . | . . . Impact Corruptions . | . . . Robots Melted . | . . . Combat Hostiles . | . . . Parts Melted . | . . . Heat Transferred 100 | . 100 . Parts Sabotaged . | . . . Parts Stolen . | . . . Parts Stripped . | . . . Power Chain Reactions 1 | . 1 . Missiles Intercepted . | . . . Alert | -11 -10 -9 ------- Run | Scr Mat Mat Peak Influence 301 | 10 301 225 Average Influence 157 | 6 181 146 Maximum Alert Level 1 | . 1 1 Low Security (%) 75 | 100 59 92 Level 1 25 | . 40 7 Level 2 . | . . . Level 3 . | . . . Level 4 . | . . . Level 5 . | . . . High Security . | . . . Max Security . | . . . Squads Dispatched 5 | . 4 1 Investigation 3 | . 3 . Extermination . | . . . Reinforcement 2 | . 1 1 Assault . | . . . Garrison . | . . . Intercept . | . . . Construction Impeded . | . . . Haulers Reinforced . | . . . Stealth | -11 -10 -9 --------- Run | Scr Mat Mat Distress Signals . | . . . Communications Jammed . | . . . Distress Signals . | . . . Times Spotted 41 | . 22 19 Peak Tracking Total 12 | . 5 12 Tactical Retreats 4 | . 1 3 Traps | -11 -10 -9 ------- Run | Scr Mat Mat Traps Triggered 3 | . 3 . Indirectly . | . . . Trap Hack Attempts . | . . . Triggered . | . . . Disarmed . | . . . Reprogrammed . | . . . Reused . | . . . Traps Extracted . | . . . Installed . | . . . Triggered . | . . . Machines | -11 -10 -9 ---------- Run | Scr Mat Mat Machines Disabled 2 | . 1 1 Max in Single Turn 1 | . 1 1 Machines Sabotaged . | . . . Garrisons Compromised . | . . . Overloaded Fab Kills . | . . . Fab Network Shutdowns . | . . . Hacking | -11 -10 -9 --------- Run | Scr Mat Mat Machines Accessed 4 | . 2 2 Terminals 4 | . 2 2 Fabricators . | . . . Repair Stations . | . . . Recycling Units . | . . . Scanalyzers . | . . . Garrison Access . | . . . Total Hacks 15 | . 5 10 Successful 10 | . 1 9 Failed 5 | . 4 1 Catastrophic . | . . . Database Lockouts . | . . . Manual 9 | . 3 6 Terminals 15 | . 5 10 Fabricators . | . . . Repair Stations . | . . . Recycling Units . | . . . Scanalyzers . | . . . Garrison Access . | . . . Terminal Hacks 8 | . 1 7 Robot Analysis 3 | . . 3 Emergency Access Points 1 | . 1 . Alert Level 2 | . . 2 Unreport Threat 1 | . . 1 Zone Layout 1 | . . 1 Fabricator Hacks . | . . . Repair Station Hacks . | . . . Recycling Unit Hacks . | . . . Scanalyzer . | . . . Garrison Access Hacks . | . . . Unauthorized Hacks 2 | . . 2 Terminals 2 | . . 2 Track 1 | . . 1 Botnet 1 | . . 1 Fabricators . | . . . Repair Stations . | . . . Recycling Units . | . . . Scanalyzers . | . . . Garrison Access . | . . . Data Cores Recovered . | . . . Used . | . . . Hacking Detections 2 | . 2 . Full Trace Events . | . . . Feedback Events . | . . . Feedback Blocked . | . . . Robot Schematics Acquired . | . . . Robots Built . | . . . Matter . | . . . Time . | . . . Total Robot Build Rating . | . . . Part Schematics Acquired . | . . . Parts Built . | . . . Matter . | . . . Time . | . . . Total Part Build Rating . | . . . Parts Repaired . | . . . Time . | . . . Parts Recycled . | . . . Recycled Matter . | . . . Retrieved Matter . | . . . Retrieved Components . | . . . Parts Scanalyzed . | . . . Part Schematics Acquired . | . . . Parts Damaged . | . . . Bothacking | -11 -10 -9 ------------ Run | Scr Mat Mat Used RIF Installer . | . . . Robots Hacked . | . . . Non-combat . | . . . Combat . | . . . Robot Hacks Applied . | . . . Relay Couplers Released . | . . . Robots Rewired . | . . . Allies Hacked . | . . . Hacks Repelled . | . . . Allies | -11 -10 -9 -------- Run | Scr Mat Mat Total Allies . | . . . Largest Group . | . . . Highest-Rated Group . | . . . Highest-Rated Ally . | . . . Total Orders . | . . . Ally Attacks . | . . . Total Damage . | . . . Kills . | . . . Allies Corrupted . | . . . Allies Melted . | . . . Intel | -11 -10 -9 ------- Run | Scr Mat Mat Robot Analysis Total 3 | . . 3 Derelict Logs Recovered . | . . . Drone Launches . | . . . Drone Recoveries . | . . . Exploration | -11 -10 -9 ------------- Run | Scr Mat Mat Turns Passed 672 | 38 368 266 Spaces Moved 347 | 18 180 149 Core 2 | . . 2 Treads 21 | . 13 8 Legs 176 | 18 158 . Wheels 148 | . 9 139 Hover . | . . . Flight . | . . . Fastest Speed 90 | 120 90 90 Average Speed 116 | 120 121 108 Slowest Speed 350 | 120 160 350 Overloaded Moves . | . . . Propulsion Burnouts . | . . . Robots Hopped . | . . . Cave-ins Triggered 1 | . . 1 Exploration Rate (%) 18 | 3 29 23 Regions Visited 2 Branch Regions . Pre-discovered Areas . | . . . Known Exits Taken . | . . . Unknown Exits Taken 2 | 1 1 . Scrap Searched . | . . . Spaces Dug . | . . . Terrain Destroyed 33 | . 4 29 Melee . | . . . Projectile . | . . . AOE 33 | . 4 29 Actions | -11 -10 -9 --------- Run | Scr Mat Mat Total 500 | 26 255 219 Wait 19 | . 12 7 Move 345 | 17 179 149 Hop . | . . . Pick Up 22 | 2 8 12 Fast Attach . | . . . Attach 13 | 1 5 7 Detach . | . . . Swap 7 | . 2 5 Drop 11 | 1 3 7 Fire 82 | 5 46 31 Melee . | . . . Ram 1 | . . 1 Kick . | . . . Crush . | . . . Escape Stasis . | . . . Rewire . | . . . Trap . | . . . Miscellaneous . | . . . Route ------- -11/Scrapyard -10/Materials -9/Materials (discovered 1 exit: [*Min]) History --------- Turn | Location | Event 7 | -11/Scrapyard | Discovered new exit (range 3) 39 | -11/Scrapyard | Entered Materials 305 | -10/Materials | Build established: Mutant 335 | -10/Materials | Discovered new exit (range 3) 345 | -10/Materials | Core integrity fell below 50% 382 | -10/Materials | Lost 4 parts (1p1n2w) 407 | -10/Materials | Entered another Materials area 407 | -9/Materials | Evolved 2 slots: Propulsion x1, Utility x1 596 | -9/Materials | Discovered new exit (range 15) 651 | -9/Materials | Crushed by falling debris 651 | -9/Materials | Core integrity fell below 50% 664 | -9/Materials | Core integrity fell below 20% 673 | -9/Materials | Destroyed by Y-45 Defender with Heavy Assault Rifle Last Messages --------------- 00657_ G-47 Trooper destroyed. 00658_ Grenade Launcher destroyed. 00658_ U-05 Engineer lays Concrete. 00659_ 2ZT 00659_ U-05 Engineer lays Concrete. 00659_ R-06 Scavenger collects Lgt. Armor Plating. 00659_ U-05 Engineer lays Concrete. 00661_ The unstable cave ceiling collapses. 00661_ U-05 Engineer builds a Wall. 00662_ U-05 Engineer lays Concrete. 00662_ R-06 Scavenger collects Beam Rifle. 00664_ U-05 Engineer lays Concrete. 00668_ The unstable cave ceiling collapses. 00668_ U-05 Engineer builds a Door. 00668_ U-05 Engineer lays Concrete. 00669_ The unstable cave ceiling collapses. 00669_ U-05 Engineer lays Concrete. 00670_ Acquired Lgt. Ion Engine. 00670_ U-05 Engineer lays Concrete. 00673_ Lgt. Ion Engine destroyed. Map ----- +----------------------------------------------------+ | ?????????????????????????????????????????????????? | | ?????????????????????????????????????????????????? | | ?????????????????????????????????????????????????? | | ?????????????????????????????????????????????????? | | ?????????????????????????????????????????????????? | | ?????????????????????????????????????????????????? | | ?????????????????????????????????????????????????? | | ?????????????????????? ?????????????????????????? | | ?????# """ #?######## """"""" #???????????????? | | ?????# "R #????????# """"""" #???????????????? | | ?????# """ #????????# """"""" #???????????????? | | ?????# #????????# """"""" #???????????????? | | ?????# #????????# """"""" ???????????????? | | ?????#####/##????????# ???????????????? | | ??????# #??######## ???????????????? | | ??????# #??#]]!!**# """"""" ???????????????? | | ??????# #??#]]!!**# """"""" ???????????????? | | ??????# #??# # """"""" ???????????????? | | ???####+## #### """"""" #???????????? | | ??? "T" ## ## # = """"""" #???????????? | | ??? # = =% =%! [ #???????????? | | ???""" + Y =!!*% ?????????? | | ???""" # # +###+######???????????????? | | ???""" ## ## u % ####???????????????? | | ??? ## #### [ %[ %## ???????????????? | | ???####### %u% Y @ ### ???????????????? | | ?????????# # = """ """ #?# ???????????????? | | ?????????# # ! """ """ #?# ???????????????? | | ?????????# # """ """ #?# ???????????????? | | ?????????# ######+########### ???????????????? | | ?????????# ###### ### ##???????????????? | | ?????????# ???????????????? | | ?????????# < ???????????????? | | ?????????# """ !// ???????????????? | | ?????????# "T" // # # ???????????????? | | ?????????# // # " " " # ???????????????? | | ?????????# #"" " ""# ???????????????? | | ########## ######### ???????????????? | | o ???????????????? | | k ????????????????????? | | """ """ """ ???????????????????? | | """ """ """ ???????????????????? | | """ """ """ ????????????????????? | | ????????????????????? | | ####+######?????????????????????? | | ########+####### #???????????????????????????????? | | ???????#w #? #???????????????????????????????? | | ???????# """ #? #???????????????????????????????? | | ???????# """ #? #???????????????????????????????? | | ####### """ #? #???????????????????????????????? | +----------------------------------------------------+ Best States ------------- Heat Dissipation 28 Energy Generation 14 Energy Capacity 275 Matter Stores 300 Matter Capacity 300 Sight Range 16 Robot Scan Range 16 Terrain Scan Range 16 Terrain Scan Density 10 Evasion (%) 42 Recoil Reduction 2 Item Schematics ----------------- None Robot Schematics ------------------ None Fabricated ------------ Nothing Alien Tech Used ----------------- None Achievements -------------- None Challenges ------------ None Game ------ Seed HardenedMicroStripper Manual? 0 Play Time 00:12:09 Cumulative 48.2 hours Start 2020.04.16 @ 09:02:03 End 2020.04.16 @ 09:12:59 Sessions 1 Manual Loads 0 Difficulty Rogue Special Mode None Game No. 121 Rogue 121 Adventurer 0 Explorer 0 Win Type - Total 0 Types 0/0/0/0/0/0/0 Lore% 27 Gallery% 45 Achievement% 30 Wizard Run 0 Options --------- ASCII 0 Keyboard 1 Movement Numpad Keybinds 0 Fullscreen 2 Font 18/SmallcapsGlow Map View 76x50 Tactical HUD 1 Map Filters NONE Filters NONE Steam 1 RUN: ca569822-9066-4232-9f39-bb7d7ed20982